{"text_format":"3","workbook":"xlsx","n_sheets":1,"sheets":["Uzklausa"],"not_rendered":{"images":1,"macros":1,"comments":1},"read":"whole","date_system":"1900"}

{"sheet":"Uzklausa","index":0,"n_rows":59,"n_cols":35,"rows_kept":59,"merged":[[2,2,2,6],[3,2,3,6],[6,5,6,8],[28,2,29,2],[28,3,28,18],[29,3,29,4],[29,5,29,6],[29,7,29,8],[29,9,29,10],[29,11,29,12],[29,13,29,14],[29,15,29,16],[29,17,29,18]]}
[]
[]
[null,null,"SVEIKATOS DRAUDIMAS"]
[null,null,"Užklausos forma"]
[]
[]
[null,null,"Langelio reikšmė įvedama ranka",null,null,"Langelio reikšmė pasirenkama iš sąrašo"]
[]
[null,null,"Įmonės informacija",null,null,"Apdraustųjų informacija"]
[{"$nulls":28},"Galiojo metų","Sveikatos draudimo nėra turėję","1 metus","2 metus","3 metus","daugiau nei 3 metus","Nežinoma"]
[null,null,"Įmonės pavadinimas",0,null,"Draudžiamų darbuotojų skaičius",{"$nulls":3},20,null,"Apdraustųjų skaičius pagal regioną"]
[null,null,"Įmonės kodas",0,null,null,"Draudžiamų vyrų skaičius",null,null,10,null,null,"Vilnius",null,null,20,{"$nulls":12},"[0; 55]",null,"Visą įmoką moka Draudėjas"]
[null,null,"Įmonės miestas","Vilnius",null,null,"Draudžiamų moterų skaičius",null,null,10,null,null,"Kaunas, Kauno rajonas",null,null,0,{"$nulls":12},"(55;60]",null,"Dalį įmokos moka Apdraustasis"]
[null,null,"Įmonės ekonominis sektorius","Informacija ir ryšiai",null,null,"Nežinoma",null,null,0,null,null,"Klaipėda, Šiauliai, Panevėžys",null,null,0,{"$nulls":12},"(60;65]",null,"Visą įmoką moka Apdraustasis"]
[{"$nulls":9},{"$f":"+IF(SUM(J12:J14)<>J11,\"Įveskite teisingą moterų ir vyrų skaičių\",\"\")","v":""},null,null,"Kiti miestai",null,null,0,{"$nulls":12},"(65;75]"]
[null,null,"Bendras darbuotojų skaičius",20,null,"Apdraustųjų skaičius pagal amžių",{"$nulls":6},"Visa Lietuva",null,null,0,{"$nulls":12},"(75;90]"]
[{"$nulls":6},"18-25",null,null,20,null,null,"Nežinoma",null,null,0,{"$nulls":12},"(90;inf)"]
[null,null,"Įmokos mokėtojas","Visą įmoką moka Draudėjas",null,null,"26-35",null,null,0,{"$nulls":5},{"$f":"+IF(SUM(P12:P17)<>J11,\"Įveskite teisingą apdraustųjų skaičių pagal regionus\",\"\")","v":""},{"$nulls":12},"nėra duomenų"]
[{"$nulls":6},"36-45",null,null,0,{"$nulls":18},"Sveikatos draudimo nėra turėję"]
[null,null,"Nuostolingumo informacija",{"$nulls":3},"46-55",null,null,0,null,"Kokiu principu bus parenkami variantai darbuotojams",{"$nulls":3},0]
[{"$nulls":6},"56-100",null,null,0]
[null,null,"Sveikatos draudimą turėjo","Nežinoma",null,null,"Nežinoma",null,null,0,null,{"$f":"+CONCATENATE(IF(D11=\"\",\"Įveskite įmonės pavadinimą / \",\"\"),IF(D14=\"\",\"Įveskite įmonės ekonominį sektorių / \",\"\"),IF(D18=\"\",\"Įveskite įmokos mokėtoją / \",\"\"),IF((IF(D22=\"\",0,1)*IF(D24=\"\",0,1)*IF(OR(AND(D22=\"Sveikatos draudimo nėra turėję\",D24<>\"Sveikatos draudimo nėra turėję\"),AND(D22<>\"Sveikatos draudimo nėra turėję\",D24=\"Sveikatos draudimo nėra turėję\")),0,1))=1,\"\",\"Įveskite teisingą nuostolingumo informaciją\"),IF(OR(D16<1,D16<J11),\"Įveskite teisingą įmonės darbuotojų skaičių  / \",\"\"))","v":""}]
[null,null,"Jei turėjo SVD, sutarties nuostolingumas, išmokos",{"$nulls":6},{"$f":"+IF(SUM(J17:J22)<>J11,\"Įveskite teisingą apdraustųjų skaičių pagal amžiaus grupes\",\"\")","v":""}]
[null,null,"Jei turėjo SVD, sutarties nuostolingumas (pasirinkti iš sąrašo), proc","nėra duomenų",null,"Apdraustųjų skaičius pagal pareigybes",{"$nulls":5},{"$f":"+CONCATENATE(IF(E47>0,\"\",\"Įveskite teisingai variantą Nr I / \"),IF(G47>0,\"\",\"Įveskite teisingai variantą Nr II / \"),IF(I47>0,\"\",\"Įveskite teisingai variantą Nr III / \"),IF(K47>0,\"\",\"Įveskite teisingai variantą Nr IV / \"),IF(M47>0,\"\",\"Įveskite teisingai variantą Nr V / \"),IF(O47>0,\"\",\"Įveskite teisingai variantą Nr VI / \"),IF(Q47>0,\"\",\"Įveskite teisingai variantą Nr VII / \"),IF(S47>0,\"\",\"Įveskite teisingai variantą Nr VIII / \"))","v":""}]
[null,null,"Jei turėjo SVD, pas kokį draudiką",{"$nulls":3},"Asmenys nedirbandys fizinio darbo",null,null,20]
[null,null,"Jei turėjo SVD, kada baigiasi esama sutartis",{"$nulls":3},"Asmenys dirbantis fizinį darbą",null,null,0]
[null,null,"Jei turėjo SVD, kokias draudimo sąlygas ir įmokas turėjo",{"$nulls":3},"Nežinoma",null,null,0]
[{"$nulls":9},{"$f":"+IF(SUM(J25:J27)<>J11,\"Įveskite teisingą apdraustųjų skaičių pagal pareigybes\",\"\")","v":""}]
[null,null,"Paslauga","Draudimo suma ir apmokama dalis",{"$nulls":24},"A DS",{"v":150,"d":"150.00 Lt"},{"v":300,"d":"300.00 Lt"},{"v":600,"d":"600.00 Lt"},{"v":900,"d":"900.00 Lt"},{"v":1500,"d":"1,500.00 Lt"},{"v":3000,"d":"3,000.00 Lt"}]
[{"$nulls":3},"I variantas",null,"II variantas",null,"III variantas",null,"IV variantas",null,"V variantas",null,"VI variantas",null,"VII variantas",null,"VIII variantas",{"$nulls":10},"SG DS",{"v":150,"d":"150.00 Lt"},{"v":300,"d":"300.00 Lt"},{"v":600,"d":"600.00 Lt"},{"v":1500,"d":"1,500.00 Lt"},"Rizika nereikalinga"]
[null,null,"Ambulatorinis gydymas",{"$nulls":25},"A apmokama dalis",{"v":0.5,"d":"50%"},{"v":0.8,"d":"80%"},{"v":0.9,"d":"90%"},{"v":1,"d":"100%"}]
[null,null,"Stacionarinis gydymas valstybinėse gydymo įstaigose"]
[null,null,"Nėščiųjų priežiūra",{"$nulls":25},"Žemės ūkis, miškininkystė ir žuvininkystė",{"$nulls":5},"AMBULATORINIS GYDYMAS"]
[null,null,"Vaistai, medicinos pagalbos ir ortopedijos techninės priemonės",{"$nulls":25},"Kasyba ir karjerų eksploatavimas",{"$nulls":5},"STACIONARINIS GYDYMAS VALSTYBINĖJE LIGONINĖJE"]
[null,null,"Nereceptiniai vaistai, maisto papildai, vitaminai",{"$nulls":25},"Apdirbamoji gamyba",{"$nulls":5},"NĖŠČIŲJŲ PRIEŽIŪRA"]
[null,null,"Profilaktiniai sveikatos patikrinimai",{"$nulls":25},"Elektros, dujų, garo tiekimas ir oro kondicionavimas",{"$nulls":5},"VAISTAI, MEDICINOS PAGALBOS IR ORTOPEDIJOS TECHNINĖS PRIEMONĖS"]
[null,null,"Vakcinacija",{"$nulls":25},"Vandens tiekimas, nuotekų valymas, atliekų tvarkymas ir regeneravimas",{"$nulls":5},"NERECEPTINIAI VAISTAI, MAISTO PAPILDAI, VITAMINAI "]
[null,null,"Reabilitacinis gydymas",{"$nulls":25},"Statyba",{"$nulls":5},"PROFILAKTINIAI SVEIKATOS PATIKRINIMAI "]
[null,null,"Dantų gydymas, burnos higiena, protezavimas",{"$nulls":25},"Didmeninė ir mažmeninė prekyba; variklinių transporto priemonių ir motociklų remontas",{"$nulls":5},"VAKCINACIJA"]
[null,null,"Sveikatingumo paslaugos",{"$nulls":25},"Transportas ir saugojimas",{"$nulls":5},"REABILITACINIS GYDYMAS"]
[null,null,"Optika",{"$nulls":25},"Apgyvendinimo ir maitinimo paslaugų veikla",{"$nulls":5},"DANTŲ GYDYMAS, BURNOS HIGIENA, PROTEZAVIMAS "]
[null,null,"Kritinių ligų gydymas",{"$nulls":25},"Informacija ir ryšiai",{"$nulls":5},"SVEIKATINGUMO PASLAUGOS"]
[null,null,"Kritinių ligų draudimas",{"$nulls":25},"Finansinė ir draudimo veikla",{"$nulls":5},"OPTIKA"]
[null,null,"Visos medicinos paslaugos",{"$nulls":25},"Nekilnojamojo turto operacijos",{"$nulls":5},"KRITINIŲ LIGŲ GYDYMAS"]
[null,null,"Reikalinga įmoka",{"$nulls":25},"Profesinė, mokslinė ir techninė veikla"]
[null,null,"Komentarai",{"$nulls":25},"Administracinė ir aptarnavimo veikla"]
[{"$nulls":3},{"$f":"+IF(OR(AND(D31<>\"\",E31<>\"\"),AND(D31=\"\",E31=\"\")),1,0)*IF(OR(AND(D32<>\"\",E32<>\"\"),AND(D32=\"\",E32=\"\")),1,0)*IF(OR(AND(D33<>\"\",E33<>\"\"),AND(D33=\"\",E33=\"\")),1,0)*IF(OR(AND(D34<>\"\",E34<>\"\"),AND(D34=\"\",E34=\"\")),1,0)*IF(OR(AND(D35<>\"\",E35<>\"\"),AND(D35=\"\",E35=\"\")),1,0)*IF(OR(AND(D36<>\"\",E36<>\"\"),AND(D36=\"\",E36=\"\")),1,0)*IF(OR(AND(D37<>\"\",E37<>\"\"),AND(D37=\"\",E37=\"\")),1,0)*IF(OR(AND(D38<>\"\",E38<>\"\"),AND(D38=\"\",E38=\"\")),1,0)*IF(OR(AND(D39<>\"\",E39<>\"\"),AND(D39=\"\",E39=\"\")),1,0)*IF(OR(AND(D40<>\"\",E40<>\"\"),AND(D40=\"\",E40=\"\")),1,0)*IF(OR(AND(D41<>\"\",E41<>\"\"),AND(D41=\"\",E41=\"\")),1,0)*IF(OR(AND(D42<>\"\",E42<>\"\"),AND(D42=\"\",E42=\"\")),1,0)*IF(OR(AND(D43<>\"\",E43<>\"\"),AND(D43=\"\",E43=\"\")),1,0)*IF(OR(AND(D44<>\"\",E44<>\"\"),AND(D44=\"\",E44=\"\")),1,0)*IF(SUM(D31:D32,D42:D43)>0,1,0)","v":0},{"$f":"+IF(AND(SUM(D31:D44)=0,SUM(E31:E44)=0),1,D47)","v":1},{"$f":"+IF(OR(AND(F31<>\"\",G31<>\"\"),AND(F31=\"\",G31=\"\")),1,0)*IF(OR(AND(F32<>\"\",G32<>\"\"),AND(F32=\"\",G32=\"\")),1,0)*IF(OR(AND(F33<>\"\",G33<>\"\"),AND(F33=\"\",G33=\"\")),1,0)*IF(OR(AND(F34<>\"\",G34<>\"\"),AND(F34=\"\",G34=\"\")),1,0)*IF(OR(AND(F35<>\"\",G35<>\"\"),AND(F35=\"\",G35=\"\")),1,0)*IF(OR(AND(F36<>\"\",G36<>\"\"),AND(F36=\"\",G36=\"\")),1,0)*IF(OR(AND(F37<>\"\",G37<>\"\"),AND(F37=\"\",G37=\"\")),1,0)*IF(OR(AND(F38<>\"\",G38<>\"\"),AND(F38=\"\",G38=\"\")),1,0)*IF(OR(AND(F39<>\"\",G39<>\"\"),AND(F39=\"\",G39=\"\")),1,0)*IF(OR(AND(F40<>\"\",G40<>\"\"),AND(F40=\"\",G40=\"\")),1,0)*IF(OR(AND(F41<>\"\",G41<>\"\"),AND(F41=\"\",G41=\"\")),1,0)*IF(OR(AND(F42<>\"\",G42<>\"\"),AND(F42=\"\",G42=\"\")),1,0)*IF(OR(AND(F43<>\"\",G43<>\"\"),AND(F43=\"\",G43=\"\")),1,0)*IF(OR(AND(F44<>\"\",G44<>\"\"),AND(F44=\"\",G44=\"\")),1,0)*IF(SUM(F31:F32,F42:F43)>0,1,0)","v":0},{"$f":"+IF(AND(SUM(F31:F44)=0,SUM(G31:G44)=0),1,F47)","v":1},0,{"$f":"+IF(AND(SUM(H31:H44)=0,SUM(I31:I44)=0),1,H47)","v":1},0,{"$f":"+IF(AND(SUM(J31:J44)=0,SUM(K31:K44)=0),1,J47)","v":1},0,{"$f":"+IF(AND(SUM(L31:L44)=0,SUM(M31:M44)=0),1,L47)","v":1},0,{"$f":"+IF(AND(SUM(N31:N44)=0,SUM(O31:O44)=0),1,N47)","v":1},0,{"$f":"+IF(AND(SUM(P31:P44)=0,SUM(Q31:Q44)=0),1,P47)","v":1},0,{"$f":"+IF(AND(SUM(R31:R44)=0,SUM(S31:S44)=0),1,R47)","v":1},{"$nulls":9},"Viešasis valdymas ir gynyba; privalomasis socialinis draudimas",{"$nulls":5},"KRITINIŲ LIGŲ DRAUDIMAS"]
[null,null,"„BTA Insurance Company“ SE filialas Lietuvoje, Viršuliškių skg. 34, LT-05132 Vilnius. Tel. +370 5 2600 600, faks. +370 5 2102 666, www.bta.lt. Įmonės kodas 300665654, PVM mokėtojo kodas LT100790314",{"$nulls":25},"Švietimas",{"$nulls":5},"VISOS MEDICINOS PASLAUGOS "]
[{"$nulls":28},"Žmonių sveikatos priežiūra ir socialinis darbas"]
[{"$nulls":28},"Meninė, pramoginė ir poilsio organizavimo veikla"]
[{"$nulls":28},"Kita aptarnavimo veikla"]
[{"$nulls":28},"Namų ūkių, samdančių darbininkus, veikla; namų ūkių veikla, susijusi su savoms reikmėms tenkinti skirtų nediferencijuojamų gaminių gamyba ir paslaugų teikimu"]
[{"$nulls":28},"Ekstrateritorinių organizacijų ir įstaigų veikla"]
[{"$nulls":28},"Nežinoma"]
[]
[]
[]
[]
[{"$nulls":28},{"$f":"+IF(J15&J23&J28&P18&L22&L24<>\"\",0,1)","v":1}]